bitfinex/quotes_SOLUSD_20220104
["timestamp","ask_amount","ask_price","bid_price","bid_amount"]
[1641324318884,13.50217569,169.15,169.04,9.14]
[1641324319310,13.50217569,169.15,169.04,7.86]
[1641324319607,15.17295675,169.15,169.04,7.86]
[1641324320109,1.67078106,169.14,169.04,7.86]
[1641324322811,1.67078106,169.14,169.04,30.6796]
[1641324323413,1.67078106,169.14,169.04,7.86]
[1641324323616,1.67078106,169.16,169.04,9.04850786]
[1641324323816,1.67078106,169.16,169.04,7.6]
[1641324324014,1.67078106,169.16,169.04,0.5]
[1641324324216,1.67078106,169.14,169.04,0.5]
[1641324324414,1.67078106,169.14,169.03,25.15247435]
[1641324324815,1.67078106,169.14,169.03,25.41247435]
[1641324325614,1.67078106,169.14,169.03,26.71447435]
[1641324326614,1.67078106,169.15,169.03,2.062]
[1641324326816,1.67078106,169.15,169.03,0.5]
[1641324327017,9.03078106,169.15,169.03,0.5]
[1641324327216,9.03078106,169.15,169.02,2.75095343]
[1641324327217,1.44850786,169.14,169.02,2.75095343]
[1641324327716,1.70850786,169.14,169.02,2.75095343]
[1641324328516,1.70850786,169.14,169.02,3.01095343]
[1641324329221,3.37928892,169.14,169.02,3.01095343]
[1641324330423,3.87928892,169.14,169.02,0.76]
[1641324330621,3.11928892,169.13,169.02,0.26]
[1641324330821,7.1,169.12,168.99,25.3906]
[1641324331023,8.80850786,169.12,168.99,0.76]
[1641324331221,1.44850786,169.11,168.99,0.76]
[1641324331422,13.12347619,169.11,168.98,4.94213008]
[1641324331724,7.1,169.1,168.98,4.44213008]
[1641324331923,7.1,169.1,168.98,4.94213008]
[1641324332522,8.77078106,169.1,168.98,4.94213008]
[1641324333325,9.03078106,169.1,168.98,4.94213008]
[1641324333522,8.77078106,169.1,168.98,4.94213008]
[1641324333923,10.21928892,169.1,168.98,0.76]
[1641324334123,10.71928892,169.1,168.98,0.26]
[1641324334326,10.71928892,169.1,168.94,30.1453163]
[1641324334924,109.47918892,169.1,168.94,32.84749346]
[1641324335325,1.67078106,169.09,168.94,32.84749346]
[1641324335530,7.1,169.08,168.94,32.84749346]
[1641324335727,8.54850786,169.08,168.94,2.96217716]
[1641324335925,9.30850786,169.08,168.94,2.96217716]
[1641324336127,1.44850786,169.07,168.94,2.96217716]
[1641324336328,7.1,169.06,168.94,2.96217716]
[1641324336527,7.36,169.06,168.94,3.46217716]
[1641324336731,7.86,169.06,168.94,3.72217716]
[1641324339029,7.86,169.06,168.94,3.46217716]
[1641324339229,9.30850786,169.06,168.94,0.5]
[1641324339531,24.4642,169.05,168.88,31.839]
[1641324339729,24.4642,169.05,168.89,1.3203]
[1641324339730,31.5642,169.05,168.89,1.3203]
[1641324339929,33.77270786,169.05,168.89,1.8203]
[1641324340128,26.85364228,169.04,168.9,2.67997223]
[1641324340329,7.1,169.03,168.9,3.17997223]
[1641324340531,7.36,169.03,168.9,3.43997223]
[1641324340731,7.86,169.03,168.9,3.43997223]
[1641324340933,7.86,169.03,168.9,0.76]
[1641324341132,1.44850786,169.02,168.9,0.76]
[1641324341333,7.1,169.01,168.86,1.7944]
[1641324341533,7.36,169.01,168.86,1.2944]
[1641324341732,9.30850786,169.01,168.86,1.7944]
[1641324341933,9.30850786,169.01,168.87,2.4641425]
[1641324342136,32.33490786,169.01,168.87,2.4641425]
[1641324342334,30.8864,169.01,168.87,2.9641425]
[1641324342934,32.55718106,169.01,168.87,2.9641425]
[1641324343135,32.55718106,169.01,168.87,3.2241425]
[1641324343534,32.55718106,169.01,168.87,0.5]
[1641324343737,30.8864,169.01,168.86,0.5]
[1641324343935,30.8864,169.01,168.85,122.5644]
[1641324344337,1.67078106,168.99,168.85,0.5]
[1641324344536,7.1,168.98,168.85,3.07106987]
[1641324344739,16.7113434,168.96,168.85,2.57106987]
[1641324344938,24.3113434,168.96,168.85,3.07106987]
[1641324345870,7.1,168.96,168.85,3.07106987]
[1641324346068,7.1,168.96,168.85,4.51957773]
[1641324346468,7.1,168.96,168.85,4.77957773]
[1641324348169,7.1,168.96,168.86,1.3196]
[1641324348374,7.1,168.96,168.86,1.8196]
[1641324348570,7.1,168.96,168.86,2.0796]
[1641324349670,7.1,168.96,168.86,0.5]
[1641324349870,7.86,168.96,168.82,24.2984]
[1641324350674,7.86,168.96,168.83,2.77168082]
[1641324351671,7.86,168.96,168.83,0.26]
[1641324351869,24.6144,168.95,168.8,0.5]
[1641324352073,7.1,168.94,168.8,0.5]
[1641324352471,7.86,168.94,168.8,0.5]
[1641324352675,7.86,168.94,168.79,28.84832251]
[1641324352871,23.5348,168.93,168.79,30.67592251]
[1641324353074,7.1,168.92,168.79,32.38443037]
[1641324353271,7.1,168.92,168.8,24.0838]
[1641324353472,7.1,168.92,168.8,24.8438]
[1641324353672,7.1,168.92,168.8,26.29230786]
[1641324353873,23.4223,168.95,168.8,33.39230786]
[1641324354072,23.4223,168.95,168.81,78.9362]
[1641324354272,23.4223,168.95,168.81,79.4362]
[1641324354472,23.4223,168.95,168.82,1.44850786]
[1641324354672,23.4223,168.95,168.82,26.25740786]
[1641324354874,23.4223,168.95,168.82,27.01740786]
[1641324356374,23.4223,168.95,168.83,1.342]
[1641324356572,23.4223,168.95,168.83,1.602]
[1641324356775,23.4223,168.95,168.83,2.102]
[1641324357775,23.4223,168.95,168.83,1.842]
[1641324358974,23.4223,168.95,168.83,2.102]
[1641324360875,23.4223,168.95,168.83,1.842]
[1641324361478,23.6823,168.95,168.8,30.2826]
[1641324361677,24.1823,168.95,168.82,0.5]
[1641324361877,7.1,168.94,168.82,0.5]
[1641324362076,7.36,168.94,168.82,0.5]
[1641324362275,7.86,168.94,168.8,23.6826]
[1641324362878,7.86,168.94,168.8,0.5]
[1641324363277,7.86,168.94,168.79,29.34832251]
[1641324363477,9.30850786,168.94,168.79,29.34832251]
[1641324363878,10.97928892,168.94,168.79,2.78084454]
[1641324364079,23.316,168.93,168.79,2.78084454]
[1641324364378,23.816,168.93,168.79,2.78084454]
[1641324364579,24.076,168.93,168.79,3.04084454]
[1641324365378,23.816,168.93,168.79,3.04084454]
[1641324366779,23.816,168.93,168.79,2.28084454]
[1641324367181,7.1,168.92,168.79,2.28084454]
[1641324367379,15.53964263,168.91,168.79,2.28084454]
[1641324367580,22.89964263,168.91,168.75,79.0344]
[1641324367784,22.9754,168.9,168.75,79.0344]
[1641324367983,7.1,168.89,168.75,79.0344]
[1641324368385,9.30850786,168.89,168.75,79.0344]
[1641324368584,9.30850786,168.89,168.74,2.69626262]
[1641324368786,83.62330786,168.89,168.74,2.69626262]
[1641324368985,83.62330786,168.89,168.74,3.19626262]
[1641324369585,83.62330786,168.89,168.74,3.45626262]
[1641324369986,84.89290786,168.89,168.74,3.45626262]
[1641324370187,83.4444,168.89,168.74,3.45626262]
[1641324371290,83.4444,168.89,168.75,25.5243]
[1641324371490,83.1844,168.89,168.75,25.5243]
[1641324371716,84.63290786,168.89,168.74,3.19626262]
[1641324371990,84.63290786,168.89,168.74,2.69626262]
[1641324372790,84.89290786,168.89,168.74,2.69626262]
[1641324372990,84.89290786,168.89,168.74,2.95626262]
[1641324373891,93.78360786,168.89,168.74,2.95626262]
[1641324374193,84.89290786,168.89,168.74,2.95626262]
[1641324375491,83.1844,168.89,168.74,2.95626262]
[1641324375692,83.1844,168.89,168.74,3.45626262]
[1641324376493,83.1844,168.89,168.75,1.3443]
[1641324376893,82.6844,168.89,168.75,1.6043]
[1641324377301,82.9444,168.89,168.75,1.6043]
[1641324377697,82.9444,168.89,168.75,2.1043]
[1641324379729,83.4444,168.89,168.75,2.1043]
[1641324381630,9.1296,168.89,168.75,3.55280786]
[1641324381830,7.86,168.89,168.75,3.55280786]
[1641324382331,7.86,168.89,168.75,2.1043]
[1641324382531,7.86,168.89,168.75,26.3914]
[1641324384431,24.23214263,168.91,168.76,1.44850786]
[1641324384632,1.67078106,168.92,168.77,7.1]
[1641324384840,1.67078106,168.92,168.78,78.9564]
[1641324385032,1.67078106,168.92,168.79,7.1]
[1641324385332,1.67078106,168.96,168.81,2.77528594]
[1641324385533,22.43850566,168.95,168.82,24.0257]
[1641324385933,22.69850566,168.95,168.82,24.7857]
[1641324386135,7.1,168.94,168.82,24.7857]
[1641324386332,7.1,168.94,168.82,24.2857]
[1641324386735,7.6,168.94,168.82,24.7857]
[1641324386935,7.6,168.94,168.82,24.2857]
[1641324387336,7.6,168.94,168.83,1.2745]
[1641324387535,0.5,168.94,168.83,1.5345]
[1641324387735,24.1644,168.95,168.83,2.0345]
[1641324388737,24.9244,168.95,168.83,2.0345]
[1641324389135,1.67078106,168.94,168.83,2.0345]
[1641324389335,2.17078106,168.94,168.83,2.0345]
[1641324389936,0.5,168.94,168.83,2.0345]
[1641324390236,1.67078106,168.95,168.83,2.0345]
[1641324390840,8.54850786,168.94,168.72,225.0159]
[1641324391038,8.80850786,168.94,168.74,1.276]
[1641324391238,1.44850786,168.93,168.74,1.276]
[1641324391442,1.67078106,168.91,168.74,1.276]
[1641324391636,7.1,168.9,168.74,24.3706]
[1641324391837,7.6,168.9,168.75,26.18065298]
[1641324392236,7.1,168.9,168.76,24.109]
[1641324392437,7.1,168.9,168.76,24.609]
[1641324392636,7.1,168.9,168.76,24.869]
[1641324393438,7.1,168.9,168.77,1.3566]
[1641324393839,7.6,168.9,168.77,1.6166]
[1641324394038,12.62373069,168.89,168.77,1.6166]
[1641324394343,12.62373069,168.89,168.75,26.18065298]
[1641324394344,27.02073069,168.89,168.74,23.8937]
[1641324394637,1.44850786,168.88,168.74,23.8937]
[1641324394837,7.1,168.87,168.74,23.8937]
[1641324395039,7.36,168.87,168.68,98.0586]
[1641324395238,1.44850786,168.86,168.72,2.18847005]
[1641324395440,7.1,168.85,168.72,2.18847005]
[1641324395741,11.863,168.85,168.72,2.18847005]
[1641324395943,12.363,168.85,168.73,1.2939]
[1641324396345,7.6,168.85,168.73,1.7939]
[1641324396539,7.6,168.85,168.73,2.0539]
[1641324398545,0.5,168.85,168.73,2.0539]
[1641324398747,9.27078106,168.89,168.73,2.0539]
[1641324399146,22.59480885,168.88,168.73,2.0539]
[1641324399446,7.1,168.87,168.73,2.0539]
[1641324399846,31.0277,168.87,168.73,2.0539]
[1641324404251,32.69848106,168.87,168.73,2.0539]
[1641324404652,32.69848106,168.87,168.73,1.7939]
[1641324404852,32.95848106,168.87,168.73,1.7939]
[1641324405259,32.69848106,168.87,168.73,1.7939]
[1641324405481,34.40698892,168.87,168.73,1.2939]
[1641324405654,34.40698892,168.87,168.71,26.3007]
[1641324405855,34.40698892,168.87,168.71,26.8007]
[1641324406057,111.35858892,168.87,168.71,24.9735]
[1641324406355,1.67078106,168.85,168.69,24.3034]
[1641324406557,7.1,168.84,168.69,24.8034]
[1641324406755,24.6453,168.83,168.69,24.8034]
[1641324406955,7.1,168.82,168.69,24.8034]
[1641324407155,20.97017683,168.81,168.69,24.8034]
[1641324407355,7.1,168.8,168.69,24.8034]
[1641324407558,7.36,168.8,168.69,0.76]
[1641324407756,7.6,168.8,168.68,76.31563056]
[1641324408958,7.6,168.8,168.69,26.0269]
[1641324409358,7.1,168.8,168.69,26.7869]
[1641324411460,7.36,168.8,168.69,26.5269]
[1641324411859,7.86,168.8,168.69,25.1735]
[1641324412060,7.86,168.8,168.69,24.6735]
[1641324412660,7.86,168.8,168.68,75.81563056]
[1641324412862,7.86,168.8,168.68,76.31563056]
[1641324413067,7.86,168.8,168.68,76.57563056]
[1641324413259,7.6,168.8,168.68,76.57563056]
[1641324413459,7.1,168.8,168.68,76.57563056]
[1641324413860,7.6,168.8,168.68,76.57563056]
[1641324414060,7.86,168.8,168.68,76.57563056]
[1641324415060,7.86,168.8,168.69,1.2385]
[1641324415460,7.86,168.8,168.69,1.9985]
[1641324415662,7.36,168.8,168.69,1.9985]
[1641324415861,7.6,168.8,168.69,1.9985]
[1641324416260,7.1,168.8,168.69,25.3816]
[1641324420493,8.9833,168.82,168.69,25.3816]
[1641324420865,31.87860725,168.82,168.69,25.3816]
[1641324422667,31.87860725,168.82,168.69,25.1216]
[1641324422967,7.1,168.81,168.69,25.1216]
[1641324423969,7.1,168.81,168.69,25.3816]
[1641324425669,7.1,168.81,168.69,25.1216]
[1641324426071,7.36,168.81,168.69,25.1216]
[1641324426270,7.86,168.81,168.69,1.2385]
[1641324426472,15.62750786,168.81,168.65,92.7]
[1641324426670,23.1224,168.8,168.65,92.7]
[1641324426874,7.1,168.79,168.63,1.3129]
[1641324427071,10.16080786,168.79,168.63,1.3129]
[1641324427270,1.44850786,168.78,168.64,2.72492134]
[1641324427470,7.1,168.77,168.64,2.72492134]
[1641324427869,7.86,168.77,168.64,2.72492134]
[1641324428273,7.86,168.77,168.64,3.22492134]
[1641324429475,7.86,168.77,168.64,2.72492134]
[1641324429677,9.30850786,168.77,168.64,2.72492134]
[1641324431077,9.30850786,168.77,168.59,22.76078662]
[1641324431278,9.30850786,168.77,168.59,23.26078662]
[1641324431279,20.66967843,168.75,168.59,23.26078662]
[1641324431477,7.1,168.74,168.59,23.26078662]
[1641324431877,7.86,168.74,168.59,23.26078662]
[1641324432080,7.86,168.74,168.6,2.25791613]
[1641324432478,7.86,168.74,168.6,3.01791613]
[1641324432678,7.86,168.74,168.61,1.2689]
[1641324432879,7.6,168.74,168.61,2.0289]
[1641324433980,36.2705108,168.74,168.61,2.0289]
[1641324434585,36.2705108,168.74,168.61,1.7689]
[1641324435383,37.71901866,168.74,168.61,1.7689]
[1641324437209,37.71901866,168.74,168.61,2.0289]
[1641324438008,36.2705108,168.74,168.61,2.0289]
[1641324439108,7.6,168.74,168.61,2.0289]
[1641324439509,7.1,168.74,168.61,2.0289]
[1641324441014,7.1,168.74,168.61,1.7689]
[1641324441610,7.36,168.74,168.61,1.7689]
[1641324441816,7.86,168.74,168.61,1.2689]
[1641324442015,1.44850786,168.73,168.6,27.04711613]
[1641324442215,8.54850786,168.73,168.6,27.04711613]
[1641324442413,9.30850786,168.73,168.6,27.04711613]
[1641324442613,7.86,168.73,168.6,27.04711613]
[1641324443213,7.86,168.73,168.61,1.3143]
[1641324443415,7.86,168.73,168.61,1.8143]
[1641324443614,7.86,168.73,168.61,2.0743]
[1641324445417,7.6,168.73,168.61,2.0743]
[1641324445818,7.1,168.73,168.61,2.0743]
[1641324446220,7.6,168.73,168.61,2.0743]
[1641324446419,7.6,168.73,168.61,1.5743]
[1641324446619,7.6,168.73,168.61,0.26]
[1641324446822,1.44850786,168.72,168.6,2.25791613]
[1641324447023,7.1,168.71,168.57,1.2995]
[1641324447422,14.3710337,168.7,168.57,1.2995]
[1641324447622,7.1,168.69,168.57,1.2995]
[1641324447824,7.6,168.69,168.57,1.2995]
[1641324448020,7.86,168.69,168.58,3.02164862]
[1641324448420,7.86,168.69,168.58,3.52164862]
[1641324448621,7.86,168.69,168.58,0.5]
[1641324448821,7.86,168.69,168.57,1.7995]
[1641324449020,7.6,168.69,168.57,1.2995]
[1641324449219,7.6,168.69,168.57,1.7995]
[1641324449620,7.6,168.69,168.57,24.6788]
[1641324449822,7.6,168.69,168.58,2.79375861]
[1641324450024,7.6,168.69,168.58,3.05375861]
[1641324450222,7.6,168.69,168.58,3.55375861]
[1641324450424,7.86,168.69,168.58,3.55375861]
[1641324450622,7.1,168.69,168.58,3.55375861]
[1641324450824,7.1,168.69,168.59,23.771]
[1641324451122,7.1,168.69,168.59,24.031]
[1641324451324,7.1,168.69,168.6,1.3366]
[1641324451524,7.1,168.69,168.6,1.5966]
[1641324452825,7.36,168.69,168.6,1.5966]
[1641324453025,7.1,168.69,168.6,1.5966]
[1641324455428,7.6,168.69,168.6,1.5966]
[1641324455830,7.86,168.69,168.6,1.5966]
[1641324456429,7.86,168.69,168.6,0.26]
[1641324456830,7.86,168.69,168.58,3.55375861]
[1641324457834,7.86,168.69,168.58,3.05375861]
[1641324458234,7.86,168.69,168.58,4.31295861]
[1641324458634,7.86,168.69,168.58,4.05295861]
[1641324458837,7.86,168.69,168.58,2.79375861]
[1641324459938,7.86,168.69,168.58,3.05375861]
[1641324462262,9.30850786,168.69,168.58,3.05375861]
[1641324462665,9.30850786,168.69,168.58,0.26]
[1641324462868,9.30850786,168.69,168.55,24.8021]
[1641324463565,9.30850786,168.69,168.54,2.57]
[1641324463766,9.30850786,168.69,168.55,2.79940686]
[1641324464066,9.30850786,168.69,168.54,2.57]
[1641324464367,23.5642,168.68,168.54,2.57]
[1641324464571,7.1,168.67,168.54,2.57]
[1641324464768,8.54850786,168.67,168.54,2.57]
[1641324464968,1.44850786,168.66,168.54,2.57]
[1641324465171,7.1,168.65,168.55,2.33408326]
[1641324465474,7.6,168.65,168.55,2.33408326]
[1641324466469,7.86,168.65,168.55,2.33408326]
[1641324467371,9.30850786,168.65,168.52,92.7]
[1641324467569,15.52150786,168.65,168.52,92.7]
[1641324467769,15.52150786,168.65,168.5,100.0]
[1641324467973,24.9824,168.64,168.5,100.0]
[1641324468170,7.1,168.63,168.5,100.0]
[1641324468370,34.54286579,168.63,168.51,3.04895629]
[1641324468573,34.80286579,168.63,168.51,3.04895629]
[1641324469872,34.80286579,168.63,168.51,3.30895629]
[1641324470273,34.80286579,168.63,168.51,3.04895629]
[1641324472073,34.80286579,168.63,168.51,3.30895629]
[1641324472477,34.80286579,168.63,168.51,3.04895629]
[1641324473079,36.25137365,168.63,168.51,3.04895629]
[1641324473679,37.92215471,168.63,168.51,3.04895629]
[1641324474479,1.67078106,168.61,168.51,3.30895629]
[1641324474679,7.1,168.6,168.51,3.04895629]
[1641324474877,7.6,168.6,168.51,26.12705629]
[1641324475480,7.1,168.6,168.51,3.30895629]
[1641324475682,7.1,168.6,168.51,3.04895629]
[1641324476282,7.36,168.6,168.51,3.04895629]
[1641324476480,7.36,168.6,168.51,0.26]
[1641324476680,7.86,168.6,168.51,0.26]
[1641324477282,9.53078106,168.6,168.5,100.26]
[1641324477481,9.53078106,168.6,168.51,2.59845231]
[1641324477884,7.86,168.6,168.51,2.59845231]
[1641324479083,1.44850786,168.59,168.5,100.0]
[1641324479282,7.1,168.58,168.5,100.0]
[1641324479482,7.86,168.58,168.5,100.0]
[1641324481084,9.30850786,168.58,168.5,100.0]
[1641324481485,7.86,168.58,168.5,100.0]
[1641324485090,7.86,168.58,168.5,100.26]
[1641324485290,7.86,168.58,168.5,100.0]
[1641324488094,9.30850786,168.58,168.5,100.0]
[1641324488496,7.86,168.58,168.5,100.0]
[1641324491500,7.1,168.58,168.5,100.26]
[1641324493101,7.1,168.58,168.5,101.5379]
[1641324493503,7.1,168.58,168.5,101.2779]
[1641324493904,7.36,168.58,168.5,101.2779]
[1641324494705,7.86,168.58,168.5,101.2779]
[1641324494905,7.86,168.58,168.5,101.5379]
[1641324498734,7.6,168.58,168.5,101.5379]
[1641324500033,7.86,168.58,168.5,101.5379]
[1641324501034,7.6,168.58,168.5,101.5379]
[1641324503235,7.86,168.58,168.5,101.5379]
[1641324503834,7.86,168.58,168.5,101.2779]
[1641324506937,7.86,168.58,168.5,100.0]
[1641324507138,9.30850786,168.58,168.5,100.0]
[1641324507941,10.97928892,168.58,168.5,100.0]
[1641324510941,109.6940912,168.58,168.5,100.0]
[1641324511140,6.51132783,168.57,168.5,100.0]
[1641324511341,3.07,168.39,168.37,92.7]
[1641324511546,3.07,168.39,168.27,184.28802816]
[1641324511547,6.16859187,168.39,168.38,6.06439992]
[1641324511739,6.16859187,168.39,168.29,124.3881]
[1641324511939,6.16859187,168.39,168.33,24.53346043]
[1641324512741,6.16859187,168.39,168.33,25.03346043]
[1641324515447,6.16859187,168.39,168.33,25.29346043]
[1641324516845,3.07,168.39,168.33,25.29346043]
[1641324517248,2.911,168.42,168.33,25.29346043]
[1641324517746,7.1,168.44,168.33,25.29346043]
[1641324518148,7.1,168.44,168.33,25.03346043]
[1641324518547,7.1,168.44,168.34,1.3657]
[1641324518947,7.1,168.44,168.34,1.8657]
[1641324519150,7.1,168.44,168.34,25.4169]
[1641324520049,7.1,168.44,168.34,25.6769]
[1641324524557,7.1,168.47,168.34,25.6769]
[1641324524755,7.1,168.47,168.35,24.7685]
[1641324524955,7.1,168.47,168.35,25.0285]
[1641324525357,7.1,168.47,168.36,24.5788]
[1641324525556,7.1,168.47,168.36,24.8388]
[1641324525860,29.50023183,168.46,168.36,27.7480384]
[1641324526063,7.1,168.45,168.36,27.7480384]
[1641324526457,7.86,168.45,168.36,0.26]
[1641324526859,7.86,168.45,168.34,74.4651]
[1641324527058,7.86,168.45,168.34,0.5]
[1641324527256,7.86,168.45,168.31,100.0146]
[1641324527459,7.86,168.45,168.31,102.90744676]
[1641324527960,7.86,168.45,168.31,103.16744676]
[1641324528360,7.86,168.45,168.31,102.66744676]
[1641324528561,7.6,168.45,168.31,127.66165258]
[1641324528960,7.6,168.45,168.32,1.2357]
[1641324529587,7.6,168.45,168.32,1.9957]
[1641324529985,7.86,168.45,168.32,1.9957]
[1641324532291,7.86,168.45,168.32,1.7357]
[1641324533291,9.30850786,168.45,168.32,1.2357]
[1641324533692,32.44370786,168.45,168.32,1.2357]
[1641324534092,30.9952,168.45,168.32,1.7357]
[1641324534292,32.66598106,168.45,168.32,1.7357]
[1641324534595,34.11448892,168.45,168.32,1.7357]
[1641324534992,32.66598106,168.45,168.32,1.2357]
[1641324535192,34.11448892,168.45,168.32,1.2357]
[1641324535593,32.44370786,168.45,168.32,1.2357]
[1641324535793,32.44370786,168.45,168.32,1.4957]
[1641324535994,32.44370786,168.45,168.32,1.2357]
[1641324536193,30.9952,168.45,168.33,24.00746412]
[1641324536595,30.9952,168.45,168.34,22.6187]
[1641324537199,30.9952,168.45,168.34,22.8787]
[1641324538195,7.86,168.45,168.34,22.6187]
[1641324538395,1.44850786,168.44,168.34,23.1187]
[1641324538596,7.1,168.43,168.34,46.31761409]
[1641324539600,7.1,168.43,168.34,46.57761409]
[1641324540901,7.1,168.43,168.34,46.07761409]
[1641324541299,7.1,168.43,168.34,46.57761409]
[1641324541500,0.5,168.45,168.34,46.57761409]
[1641324541900,7.6,168.48,168.34,46.57761409]
[1641324542099,7.6,168.48,168.35,1.44850786]
[1641324542301,7.6,168.48,168.35,1.3128]
[1641324542500,7.6,168.48,168.35,2.0728]
[1641324542900,11.53980598,168.48,168.35,2.0728]
[1641324543704,7.6,168.48,168.35,2.0728]
[1641324543905,7.6,168.48,168.35,3.52130786]
[1641324544204,7.6,168.48,168.37,2.2799758]
[1641324544407,7.6,168.48,168.37,2.7799758]
[1641324544604,7.6,168.48,168.37,3.0399758]
[1641324544807,7.6,168.48,168.38,32.01455916]
[1641324545003,7.1,168.48,168.38,32.77455916]
[1641324545202,7.1,168.52,168.38,32.77455916]
[1641324545405,7.1,168.52,168.39,25.98620786]
[1641324545606,1.67078106,168.53,168.39,33.34620786]
[1641324545806,1.67078106,168.53,168.4,1.44850786]
[1641324546009,1.67078106,168.53,168.4,10.99794696]
[1641324546206,1.67078106,168.53,168.4,11.49794696]
[1641324546406,1.67078106,168.53,168.41,1.44850786]
[1641324546607,1.67078106,168.53,168.42,24.9698559]
[1641324546817,8.77078106,168.57,168.44,2.63668389]
[1641324547011,8.77078106,168.57,168.44,2.89668389]
[1641324547207,9.27078106,168.57,168.44,3.39668389]
[1641324547607,9.27078106,168.57,168.46,24.45632026]
[1641324547809,1.67078106,168.56,168.46,24.45632026]
[1641324548033,1.67078106,168.56,168.46,25.21632026]
[1641324548209,2.17078106,168.56,168.46,25.21632026]
[1641324548410,0.5,168.56,168.46,25.21632026]
[1641324548810,2.17078106,168.58,168.46,25.21632026]
[1641324549013,2.17078106,168.58,168.47,23.9769]
[1641324549212,1.67078106,168.58,168.47,24.4769]
[1641324549414,1.67078106,168.58,168.47,30.2809]
[1641324550213,1.67078106,168.59,168.47,31.5905]
[1641324550811,1.67078106,168.6,168.48,1.44850786]
[1641324551012,1.67078106,168.6,168.48,1.70850786]
[1641324551213,1.67078106,168.6,168.48,2.20850786]
[1641324551413,1.67078106,168.6,168.5,2.73210911]
[1641324551614,1.67078106,168.6,168.5,32.96599819]
[1641324551813,1.67078106,168.6,168.51,1.44850786]
[1641324552015,1.67078106,168.62,168.51,0.26]
[1641324552216,1.67078106,168.62,168.51,25.6687]
[1641324552718,1.67078106,168.63,168.51,25.6687]
[1641324555841,1.67078106,168.63,168.51,32.8007]
[1641324556042,1.67078106,168.63,168.52,7.1]
[1641324556547,1.67078106,168.63,168.52,9.30850786]
[1641324556950,1.67078106,168.63,168.52,7.86]
[1641324557848,12.1305833,168.71,168.52,7.86]
[1641324557849,1.67078106,168.69,168.52,7.86]
[1641324558045,1.67078106,168.69,168.53,23.3313]
[1641324558245,1.67078106,168.69,168.54,34.77339421]
[1641324558446,10.56908838,168.69,168.54,35.27339421]
[1641324558646,8.77078106,168.68,168.54,28.43339421]
[1641324558947,10.71928892,168.68,168.54,28.43339421]
[1641324559346,1.67078106,168.65,168.54,28.43339421]
[1641324559948,1.67078106,168.66,168.54,28.17339421]
[1641324561047,1.67078106,168.67,168.54,28.17339421]
[1641324561248,1.67078106,168.67,168.54,28.43339421]
[1641324561847,1.67078106,168.67,168.56,2.59994642]
[1641324562047,1.67078106,168.67,168.56,2.85994642]
[1641324562246,1.67078106,168.67,168.56,3.35994642]
[1641324562448,1.67078106,168.69,168.56,3.35994642]
[1641324562648,1.67078106,168.69,168.57,25.2372]
[1641324562850,1.67078106,168.69,168.58,25.3645654]
[1641324563052,1.67078106,168.7,168.58,25.6245654]
[1641324563250,1.67078106,168.7,168.59,23.4174]
[1641324563451,1.67078106,168.7,168.59,23.9174]
[1641324563749,1.67078106,168.7,168.59,24.1774]
[1641324564350,2.17078106,168.7,168.59,23.6774]
[1641324564750,5.84011823,168.69,168.59,23.6774]
[1641324564952,7.1,168.68,168.56,26.77884642]
[1641324565355,7.86,168.68,168.56,3.09994642]
[1641324565955,7.86,168.68,168.56,27.40120882]
[1641324566155,1.67078106,168.67,168.56,27.40120882]
[1641324566357,7.1,168.66,168.56,27.40120882]
[1641324566654,7.36,168.66,168.56,26.90120882]
[1641324566857,7.86,168.66,168.52,80.1846]